bitfinex/quotes_ETHUSD_20250814
["timestamp","ask_amount","ask_price","bid_price","bid_amount"]
[1755178954157,2.19979306,4545.9,4545.7,4.249]
[1755178954357,2.19977891,4546.0,4545.7,4.249]
[1755178954696,2.19919892,4547.2,4545.7,4.249]
[1755178954899,0.55,4548.3,4545.7,4.249]
[1755178955213,0.55,4548.3,4545.5,0.0008]
[1755178955214,2.1999296,4545.6,4545.5,0.0008]
[1755178955504,0.55,4547.4,4545.5,4.249]
[1755178955707,0.55,4546.8,4545.6,4.249]
[1755178955868,0.55,4546.8,4543.5,2.20093011]
[1755178955869,0.55,4545.6,4543.4,0.4656]
[1755178956071,2.20008653,4545.3,4543.4,4.249]
[1755178956274,2.20008653,4545.3,4540.3,2.20246599]
[1755178956275,5.3193,4545.2,4541.9,4.249]
[1755178956510,6.5683,4545.1,4541.9,4.249]
[1755178956708,2.20167078,4542.1,4541.9,4.249]
[1755178956884,4.248,4543.2,4539.2,0.4656]
[1755178957229,2.2022228,4540.9,4539.9,0.660203]
[1755178957532,0.3575,4542.1,4539.7,4.248]
[1755178957684,2.55914356,4542.1,4539.7,4.248]
[1755178958013,2.20177022,4541.8,4539.9,3.0]
[1755178958224,2.2018187,4541.7,4539.8,5.82]
[1755178958369,0.3575,4542.9,4539.9,0.48762691]
[1755178958724,0.55,4542.4,4539.9,2.82]
[1755178958871,2.20312844,4539.0,4538.9,0.001]
[1755178959270,2.31352844,4539.0,4538.9,0.001]
[1755178959669,0.1104,4539.0,4538.9,0.001]
[1755178959903,2.20244912,4540.4,4538.9,0.001]
[1755178960104,0.1104,4539.0,4538.9,0.001]
[1755178960624,0.1104,4539.3,4538.9,0.001]
[1755178961175,5.20230919,4540.7,4538.9,0.001]
[1755178961176,0.1104,4539.0,4538.9,0.001]
[1755178961805,0.1104,4539.4,4538.9,5.02417698]
[1755178961969,0.1104,4540.0,4539.0,2.82]
[1755178962170,2.3193,4541.5,4539.0,2.82]
[1755178962385,0.1104,4540.1,4539.4,0.1104]
[1755178962586,2.3193,4542.2,4539.5,4.249]
[1755178962888,0.1104,4540.6,4539.9,0.1104]
[1755178963099,2.20197419,4541.4,4540.3,2.20244976]
[1755178963319,0.1104,4540.8,4540.4,4.251]
[1755178963650,2.20152786,4542.3,4540.2,0.1104]
[1755178963786,2.20152786,4542.3,4540.2,4.3622]
[1755178963986,3.0,4542.0,4540.2,4.3622]
[1755178964185,0.55,4541.7,4540.2,0.1112]
[1755178964384,3.9075,4541.7,4540.2,0.0008]
[1755178964598,0.1104,4540.3,4539.8,6.45273996]
[1755178964820,1.9618,4541.8,4539.8,6.45273996]
[1755178964821,0.1104,4540.5,4539.9,2.82]
[1755178965023,0.1104,4540.5,4540.1,2.20254833]
[1755178965248,0.1104,4540.6,4540.2,4.25]
[1755178965392,2.20187954,4541.6,4540.3,2.82]
[1755178965731,0.55,4542.0,4540.3,2.82]
[1755178966024,2.20200293,4541.4,4540.4,2.20244912]
[1755178966325,3.0,4543.1,4540.3,2.82]
[1755178966538,0.660382,4543.2,4540.4,3.48762449]
[1755178966746,2.20119423,4543.0,4540.6,3.0]
[1755178966890,3.0,4543.6,4540.8,5.2022551]
[1755178967085,2.55814857,4544.2,4541.5,3.0]
[1755178967086,2.20062095,4544.2,4541.5,3.0]
[1755178967322,2.20071812,4544.0,4543.0,2.20115776]
[1755178967526,0.66004,4545.4,4543.1,4.2730114]
[1755178967724,0.3575,4546.5,4543.2,3.02201091]
[1755178967950,2.19959087,4546.3,4543.2,3.4656]
[1755178968088,2.2001698,4545.2,4543.3,2.20104329]
[1755178968426,2.20021143,4545.1,4543.4,2.82]
[1755178968724,2.19959087,4546.3,4543.4,2.82]
[1755178968891,2.20015283,4545.2,4544.2,2.20059787]
[1755178969093,2.20015283,4545.2,4543.9,2.20075249]
[1755178969094,2.19992468,4545.7,4544.6,2.20041135]
[1755178969291,2.55699074,4546.6,4544.3,4.25]
[1755178969292,0.3575,4546.6,4544.3,4.25]
[1755178969499,0.659771,4547.1,4544.3,4.25]
[1755178969694,0.3575,4547.0,4544.4,4.25]
[1755178969899,2.20042173,4544.6,4544.4,4.25]
[1755178970120,2.20020724,4545.1,4544.4,4.25]
[1755178970304,2.20036291,4544.8,4544.4,4.25]
[1755178970640,2.20034549,4544.8,4544.4,4.25]
[1755178970944,2.749728,4546.1,4544.4,4.25]
[1755178971138,2.20002262,4545.5,4544.4,4.25]
[1755178971330,0.3575,4546.3,4544.4,4.25]
[1755178971527,4.839,4547.3,4544.5,2.9119]
[1755178971713,2.19920388,4547.1,4544.7,2.2003544]
[1755178971924,2.1999144,4545.7,4544.5,2.9119]
[1755178972233,0.55,4546.6,4544.5,0.4625]
[1755178972430,0.55,4546.1,4544.6,4.249]
[1755178972642,2.20034495,4544.8,4544.4,4.249]
[1755178972811,2.20025417,4545.0,4544.4,4.249]
[1755178973145,0.55,4545.7,4543.2,2.4494]
[1755178973463,3.0,4545.3,4543.2,2.4494]
[1755178973744,0.55,4545.7,4543.5,3.0]
[1755178973949,0.55,4546.2,4544.5,2.20041457]
[1755178974109,2.19995709,4545.6,4544.6,4.248]
[1755178974304,1.9618,4546.8,4544.6,4.248]
[1755178974629,5.19920388,4547.1,4544.6,4.248]
[1755178974828,2.20002396,4545.5,4544.6,4.248]
[1755178975030,2.20003647,4545.4,4544.6,4.248]
[1755178975245,2.19925225,4547.0,4544.7,5.9119]
[1755178975432,0.1096,4545.7,4545.0,0.1104]
[1755178976523,2.30936373,4546.0,4545.4,0.1104]
[1755178976736,0.1096,4546.0,4545.5,4.248]
[1755178976907,0.1096,4546.0,4545.6,0.02199929]
[1755178977112,0.002,4548.0,4545.6,2.9119]
[1755178977351,0.002,4548.0,4545.7,3.0]
[1755178977648,0.002,4548.0,4545.9,3.0]
[1755178977967,0.002,4548.0,4546.0,0.48449736]
[1755178978153,0.002,4548.0,4546.2,3.0]
[1755178978154,2.19939233,4546.8,4546.2,3.0]
[1755178978316,2.19881703,4547.9,4546.0,0.4625]
[1755178978705,2.19968326,4546.2,4545.9,4.246]
[1755178978824,2.19973603,4546.0,4545.9,4.246]
[1755178979031,0.55,4547.0,4544.6,2.9119]
[1755178979217,0.55,4547.2,4544.7,0.02200365]
[1755178979411,2.19925225,4547.0,4544.6,2.9119]
[1755178979613,2.20013314,4545.2,4544.6,0.4625]
[1755178979866,2.20027631,4544.9,4544.6,0.4625]
[1755178980012,2.19973603,4546.0,4543.9,2.4494]
[1755178980222,3.0,4546.7,4544.0,4.246]
[1755178980427,0.20068536,4546.6,4544.1,5.93390655]
[1755178980768,2.20077004,4548.0,4544.5,3.0]
[1755178980915,0.659643,4547.9,4544.7,3.0]
[1755178981120,2.19979096,4545.9,4544.9,3.0]
[1755178981351,3.0,4547.6,4543.3,2.4494]
[1755178981651,2.20075265,4543.9,4543.8,4.245]
[1755178983461,5.55683693,4545.2,4542.3,0.4625]
[1755178983462,3.0,4545.1,4542.3,0.4625]
[1755178983764,2.20046387,4544.5,4542.4,4.245]
[1755178983927,2.75031684,4544.8,4542.4,4.7075]
[1755178984128,2.20096916,4543.5,4542.4,4.7083]
[1755178984355,2.20036526,4544.7,4542.5,5.4494]
[1755178984540,0.55,4544.8,4542.5,7.65082231]
[1755178984541,0.20072604,4544.8,4542.5,7.65082231]
[1755178984758,5.20034145,4544.8,4542.5,5.4494]
[1755178984929,0.20072604,4544.7,4542.7,2.20132363]
[1755178985129,0.20072604,4544.7,4542.5,7.65079146]
[1755178985333,2.20101925,4543.4,4542.5,7.65079146]
[1755178985535,0.55,4544.6,4542.5,5.4494]
[1755178985756,2.20107377,4543.3,4542.5,5.4494]
[1755178985954,0.20072604,4544.4,4542.5,5.4494]
[1755178986167,2.20104013,4543.4,4542.5,5.4494]
[1755178986477,2.2010653,4543.3,4542.5,5.4494]
[1755178986644,0.55,4544.5,4542.5,5.4494]
[1755178986963,0.55,4544.9,4542.7,5.201334]
[1755178987167,2.20104872,4543.3,4542.7,3.0]
[1755178987355,2.20056621,4544.3,4543.0,2.20118864]
[1755178987556,0.1104,4544.5,4543.2,0.1104]
[1755178987867,2.200556,4544.4,4543.4,2.20098448]
[1755178988169,0.1104,4544.5,4543.4,2.20098448]
[1755178988170,0.1104,4544.5,4543.4,3.0]
[1755178988370,2.20044447,4544.6,4543.6,3.0]
[1755178988557,0.3567,4545.4,4542.4,2.9127]
[1755178988793,0.55,4545.2,4542.5,4.244]
[1755178989100,0.1104,4543.4,4542.8,0.1104]
[1755178989248,2.20104329,4543.3,4542.8,0.1104]
[1755178989454,2.20101056,4543.4,4542.9,2.9119]
[1755178989756,2.55675243,4545.4,4543.1,0.1104]
[1755178989757,2.2001232,4545.2,4543.1,0.1104]
[1755178989956,4.244,4546.1,4543.6,0.1104]
[1755178989957,2.20075489,4543.9,4543.6,0.1104]
[1755178990152,0.1104,4544.6,4543.7,7.1559]
[1755178990353,3.0,4545.8,4543.8,0.1104]
[1755178990555,2.20070422,4544.0,4543.9,4.244]
[1755178990956,0.1104,4544.3,4543.9,7.1559]
[1755178991156,0.1104,4544.7,4544.0,2.9119]
[1755178991495,2.199642,4546.2,4544.2,0.1104]
[1755178991696,2.31062343,4545.0,4544.1,2.75064993]
[1755178991897,2.20036166,4544.8,4544.5,0.1104]
[1755178992200,0.1104,4545.0,4544.5,0.6604]
[1755178992689,2.20041367,4544.6,4544.5,0.6604]
[1755178992994,2.20051051,4544.4,4544.3,4.243]
[1755178993196,2.20055894,4544.3,4544.2,4.243]
[1755178993368,2.20094229,4543.6,4543.3,0.4625]
[1755178993570,2.2009464,4543.5,4543.4,4.243]
[1755178994113,0.1104,4543.9,4543.4,4.243]
[1755178994271,0.1104,4543.9,4543.5,0.55]
[1755178994478,2.31115509,4543.9,4543.5,3.4619]
[1755178994672,2.20072116,4544.0,4543.7,0.55]
[1755178994990,2.20070422,4544.0,4543.7,0.55]
[1755178995191,0.1104,4544.1,4543.5,0.1104]
[1755178995509,0.1104,4544.1,4543.4,0.0008]
[1755178995510,2.20081044,4543.8,4543.6,4.242]
[1755178995874,2.19978442,4545.9,4543.7,5.6627409]
[1755178996103,2.2006153,4544.2,4543.7,3.5723]
[1755178996408,0.1104,4544.6,4543.9,0.55]
[1755178996708,0.1104,4544.8,4544.2,0.55]
[1755178996894,2.20055894,4544.3,4544.2,0.1104]
[1755178997205,2.20050655,4544.5,4544.2,4.241]
[1755178997371,2.20046282,4544.5,4544.2,4.241]
[1755178997576,0.1104,4544.6,4544.2,4.241]
[1755178997892,0.1104,4545.1,4544.5,0.55]
[1755178998428,2.20041367,4544.6,4544.5,4.241]
[1755178998578,2.31081367,4544.6,4544.5,4.241]
[1755178998772,2.31081473,4544.6,4543.8,4.241]
[1755178998972,0.0932,4543.9,4543.8,4.241]
[1755178999176,2.2009464,4543.5,4543.4,0.0008]
[1755178999377,2.3113464,4543.5,4543.4,0.0008]
[1755179000188,2.2091464,4543.5,4543.4,0.0008]
[1755179000914,0.1104,4543.8,4543.5,0.55]
[1755179001100,3.0,4544.5,4543.5,0.55]
[1755179001273,2.20075051,4544.0,4543.5,0.55]
[1755179001473,0.1104,4544.1,4543.5,0.55]
[1755179001676,3.0,4544.0,4543.5,0.55]
[1755179001875,2.20026843,4544.9,4543.5,3.18]
[1755179002082,2.20089796,4543.6,4543.5,3.18]
[1755179002394,2.31129796,4543.6,4543.5,3.73]
[1755179002601,0.1104,4543.6,4543.5,3.73]
[1755179002804,0.73566278,4547.0,4544.2,0.55]
[1755179003007,0.20172484,4547.3,4544.4,0.55]
[1755179003210,0.20172484,4547.3,4543.7,4.837]
[1755179003211,0.002,4547.6,4544.8,0.55]
[1755179003518,2.19911083,4547.3,4545.7,0.55]
[1755179003846,2.20097276,4547.6,4544.9,7.00880268]
[1755179003847,0.002,4547.6,4545.9,0.55]
[1755179004059,0.002,4547.6,4546.0,4.72719736]
[1755179004268,0.002,4547.6,4546.1,3.31979687]
[1755179004408,0.002,4547.6,4547.0,0.55]
[1755179004613,0.002,4547.6,4547.2,0.55]
[1755179004811,0.002,4547.6,4547.2,2.8306]
[1755179005554,0.002,4547.6,4547.4,0.55]
[1755179005754,0.002,4547.6,4547.5,5.49681044]
[1755179005919,0.002,4548.0,4547.8,0.55]
[1755179006118,0.002,4548.4,4548.0,0.55]
[1755179006321,0.002,4548.4,4548.3,0.55]
[1755179006537,0.002,4548.4,4548.3,7.5348]
[1755179006733,0.002,4548.4,4548.3,9.73342366]
[1755179006933,0.002,4548.4,4548.3,7.5348]
[1755179007657,0.002,4548.8,4548.3,7.5348]
[1755179007953,0.002,4549.5,4549.3,2.74814037]
[1755179008153,0.002,4549.5,4549.4,2.74809205]
[1755179008343,0.002,4549.5,4549.4,5.49589205]
[1755179008543,0.002,4551.1,4549.7,2.74794711]
[1755179008749,2.19927666,4551.1,4549.7,5.49574711]
[1755179009060,2.19931077,4551.1,4549.7,5.49574711]
[1755179009265,0.002,4551.1,4549.7,5.49734359]
[1755179009574,0.002,4551.1,4549.7,0.55]
[1755179009718,2.19808611,4549.5,4549.1,2.2806]
[1755179009921,2.19794711,4549.7,4549.2,4.234]
[1755179010138,0.002,4551.1,4549.3,6.9818]
[1755179010333,5.19799367,4549.7,4549.4,4.784]
[1755179010632,3.0,4550.9,4549.5,4.784]
[1755179010836,0.002,4551.1,4549.7,2.74794711]
[1755179011100,0.002,4551.1,4549.7,3.2978]
[1755179011305,2.1998988,4549.8,4548.9,0.4672]
[1755179011570,2.19799325,4549.7,4549.0,6.5126]
[1755179011770,0.002,4549.8,4548.4,5.3022]
[1755179011998,0.002,4549.8,4548.5,4.231]
[1755179012153,0.002,4549.8,4548.4,5.3022]
[1755179012154,2.19847865,4548.6,4548.4,4.835]
[1755179012482,2.19847865,4548.6,4545.1,4.71512471]
[1755179012483,2.19822395,4549.2,4546.7,2.7478]
[1755179012695,5.19852698,4548.5,4546.8,4.231]
[1755179012835,2.19911597,4547.3,4546.8,4.3406]
[1755179013034,0.1096,4547.5,4546.8,6.6212]
[1755179013271,0.1096,4547.5,4546.8,4.231]
[1755179013538,0.1096,4547.5,4546.6,4.833]
[1755179013539,0.1096,4547.6,4547.1,0.1096]
[1755179013739,0.1096,4547.6,4547.2,2.7478]
[1755179013948,3.0,4549.4,4547.3,2.7478]
[1755179014149,0.1096,4548.0,4547.4,4.23]
[1755179014348,2.19881703,4547.9,4547.5,0.55]
[1755179014549,0.1096,4548.0,4547.5,0.5508]
[1755179014760,0.3587,4550.4,4548.0,0.55]
[1755179015088,0.3587,4550.4,4548.2,0.55]
[1755179015292,0.002,4550.8,4548.8,0.55]
[1755179015493,2.19772254,4550.2,4549.2,0.55]
[1755179015794,2.19758063,4550.5,4549.7,0.55]
[1755179015954,2.19942828,4550.8,4549.7,0.55]
[1755179015955,2.19761345,4550.4,4549.7,3.2978]
[1755179016155,0.002,4550.8,4550.6,2.19749156]
[1755179016359,0.002,4550.8,4550.7,4.779]
[1755179016718,0.002,4550.8,4550.7,9.72426412]
[1755179016875,0.002,4550.8,4550.7,7.5268]
[1755179017078,0.002,4550.8,4550.7,0.55]
[1755179017275,0.002,4550.8,4550.7,4.778]
[1755179018013,0.002,4550.8,4550.7,9.72326412]
[1755179018309,0.002,4551.1,4551.0,2.74731927]
[1755179018659,0.002,4551.1,4551.0,5.49511927]
[1755179018958,0.002,4551.1,4551.0,7.5248]
[1755179019290,0.002,4551.1,4551.0,4.777]
[1755179019794,0.002,4551.1,4551.0,9.72211927]
[1755179019979,0.002,4551.1,4551.0,7.5248]
[1755179020180,0.002,4551.1,4551.0,3.2978]
[1755179020381,0.002,4551.1,4551.0,4.225]
[1755179020596,2.19927098,4551.1,4551.0,4.225]
[1755179021184,2.19754976,4550.6,4549.6,2.7478]
[1755179021491,0.002,4551.1,4549.7,4.225]
[1755179021693,0.002,4551.1,4549.8,0.02197898]
[1755179022195,0.002,4551.1,4550.2,0.55]
[1755179022395,0.002,4551.1,4550.4,0.55]
[1755179022617,2.1975607,4550.5,4550.4,0.55]
[1755179022819,0.002,4551.1,4550.5,0.55]
[1755179023123,2.19751241,4550.6,4550.5,0.55]
[1755179023321,0.002,4551.1,4549.1,2.2806]
[1755179023928,2.19927361,4551.1,4549.2,6.44315306]
[1755179024225,0.002,4551.1,4549.5,0.55]
[1755179024413,0.002,4551.1,4549.4,0.55]
[1755179024613,0.002,4551.1,4549.6,0.55]
[1755179024816,0.1096,4550.0,4549.6,0.5508]
[1755179024986,0.1096,4550.0,4549.7,2.2806]
[1755179025190,0.002,4551.0,4549.8,4.222]
[1755179025392,2.30754711,4549.7,4549.6,0.0008]
[1755179026023,0.1096,4549.7,4548.7,4.222]
[1755179026192,2.19823701,4549.1,4548.7,4.222]
[1755179026526,2.19819225,4549.2,4548.7,4.222]
[1755179026891,0.3587,4550.4,4546.1,2.19967833]
[1755179026892,2.19823701,4549.1,4546.1,2.19967833]
[1755179027127,2.19823701,4549.1,4548.9,4.221]
[1755179027503,2.19823701,4549.1,4548.6,4.22]
[1755179027827,2.19823701,4549.1,4546.9,2.19926817]
[1755179027828,2.19823701,4549.1,4549.0,1e-08]
[1755179029196,5.55693701,4549.1,4549.0,1e-08]
[1755179029628,5.74613701,4549.1,4549.0,1e-08]
[1755179029940,5.55693701,4549.1,4549.0,1e-08]
[1755179030344,5.19823701,4549.1,4549.0,1e-08]
[1755179030566,5.55693701,4549.1,4549.0,1e-08]
[1755179030864,6.29613701,4549.1,4549.0,1e-08]
[1755179031041,6.43613701,4549.1,4549.0,1e-08]
[1755179031653,10.65413701,4549.1,4549.0,1e-08]
[1755179032148,10.10413701,4549.1,4549.0,1e-08]
[1755179032443,5.19823701,4549.1,4549.0,1e-08]
[1755179032653,5.17651236,4549.1,4549.0,1e-08]
[1755179034856,0.002,4549.8,4549.0,1e-08]
[1755179035034,2.19823701,4549.1,4549.0,0.00080001]
[1755179035216,2.19818992,4549.2,4549.0,0.00080001]
[1755179035415,0.002,4549.8,4549.0,0.00080001]
[1755179035416,2.1979891,4549.7,4549.1,2.803]
[1755179035627,0.002,4549.8,4549.7,2.19794711]
[1755179035837,0.002,4549.8,4549.7,2.803]
[1755179036537,0.1116,4549.8,4549.7,2.803]
[1755179036936,0.002,4549.8,4549.7,5.55094711]
[1755179037137,0.002,4549.8,4549.7,7.018]
[1755179037338,0.1116,4549.8,4549.7,2.3578]
[1755179038048,0.1116,4549.8,4549.7,2.803]
[1755179038354,0.1116,4549.8,4549.7,2.3578]
[1755179038556,0.1116,4549.8,4549.0,0.00080001]
[1755179038854,0.1096,4549.1,4549.0,0.00080001]
[1755179039210,2.30783701,4549.1,4549.0,0.00080001]
[1755179040240,0.1096,4549.1,4549.0,0.00080001]
[1755179040448,0.002,4549.8,4549.0,0.00080001]
[1755179040449,0.002,4549.8,4549.7,2.74794711]
[1755179040653,0.002,4551.1,4549.8,0.55]
[1755179040964,0.002,4554.3,4551.9,2.19688481]
[1755179041117,0.002,4554.3,4552.5,2.19655775]
[1755179041118,0.087842,4554.2,4552.5,2.19655775]
[1755179041315,0.087842,4554.2,4552.6,2.803]
[1755179041514,0.002,4554.3,4552.7,6.40848232]
[1755179041727,0.55279842,4554.8,4552.8,2.803]
[1755179041928,0.658643,4555.7,4553.0,0.55]
[1755179042147,0.3607,4558.3,4553.7,0.55]
[1755179042352,0.658496,4557.0,4554.2,0.55]
[1755179042551,0.658496,4557.0,4554.4,3.0]
[1755179042552,2.1945686,4556.8,4554.4,3.0]
[1755179042828,0.3607,4557.7,4555.0,0.55]
[1755179043030,3.0,4558.5,4555.2,0.55]
[1755179043031,0.3607,4557.8,4555.2,0.55]
[1755179043234,2.19408912,4557.7,4555.3,0.02195245]
[1755179043429,2.19423355,4557.4,4555.4,0.55]
[1755179043731,0.3607,4557.8,4555.5,4.21]
[1755179044056,0.3607,4557.8,4553.9,2.19590605]
[1755179044057,3.0,4556.7,4554.3,4.829]
[1755179044375,2.19449129,4556.9,4554.4,3.353]
[1755179044672,2.19543405,4555.0,4554.4,2.803]
[1755179044821,3.0,4556.9,4554.4,2.803]
[1755179044822,0.3607,4557.1,4554.6,0.55]
[1755179045019,2.19466998,4556.5,4554.8,0.55]
[1755179045254,2.55476317,4557.8,4554.9,7.01]
[1755179045568,0.55,4557.0,4554.8,0.0008]
[1755179045891,2.195307,4555.2,4555.0,4.207]
[1755179046096,0.3607,4556.9,4555.0,4.207]
[1755179046370,2.19485646,4556.2,4555.0,7.01]
[1755179046533,2.19458475,4556.7,4555.0,7.01]
[1755179046739,1.1944,4557.6,4555.0,9.2053715]
[1755179046937,2.1942817,4557.3,4555.0,2.803]
[1755179047136,2.19491254,4556.0,4555.0,4.99838724]
[1755179047370,3.3607,4557.5,4555.1,4.205]
[1755179047563,0.55,4556.8,4554.0,0.4452]
[1755179047868,1.5551,4556.7,4554.4,4.22595678]
[1755179048074,1.5551,4557.5,4554.5,2.803]
[1755179048281,0.55,4557.3,4554.6,4.204]
[1755179048435,0.55,4557.1,4553.6,2.803]
[1755179048635,2.19525773,4555.3,4554.1,4.204]
[1755179048831,3.0,4555.1,4554.1,4.204]
[1755179049058,2.1958036,4554.2,4553.6,2.803]
[1755179049334,2.19549969,4554.8,4553.7,4.22496016]
[1755179049557,2.19490781,4556.0,4553.6,2.803]
[1755179049833,2.19539866,4555.0,4553.7,4.203]
[1755179050052,2.19538968,4555.0,4552.9,2.803]
[1755179050349,3.0,4555.1,4553.0,0.02196354]
[1755179050545,2.19524022,4555.4,4552.9,4.202]
[1755179050746,0.55,4555.8,4552.9,4.202]
[1755179050747,2.19577499,4554.3,4553.1,0.55]
[1755179050963,3.0,4555.5,4553.3,0.55]
[1755179051165,2.19556556,4554.7,4553.5,0.55]
[1755179051366,0.1096,4554.4,4553.8,0.55]
[1755179051578,0.1096,4554.4,4553.7,0.1096]
[1755179051745,0.1096,4553.9,4553.8,4.201]
[1755179052068,2.30471998,4553.9,4553.8,4.201]
[1755179052237,2.30471998,4553.9,4553.6,2.803]
[1755179052438,2.1959682,4553.8,4553.7,4.201]
[1755179052738,2.19611288,4553.5,4553.4,4.2]
[1755179052971,3.0,4554.8,4553.4,6.5578]
[1755179053157,2.30571288,4553.5,4553.4,6.5578]
[1755179053675,2.30571288,4553.5,4553.4,4.2]
[1755179054043,2.30571288,4553.5,4553.4,7.003]
[1755179054193,0.1096,4553.5,4553.4,7.003]
[1755179054510,3.0,4555.3,4551.7,0.001]
[1755179054511,2.19659527,4552.5,4552.4,2.803]
[1755179054822,2.19659527,4552.5,4552.4,4.199]
[1755179055094,2.19693308,4551.8,4551.7,0.001]
[1755179055294,0.1096,4551.8,4551.7,7.002]
[1755179055587,0.1096,4552.3,4551.8,0.55]
[1755179055800,0.1096,4552.7,4552.0,0.55]
[1755179055963,2.19683655,4552.0,4551.9,2.803]
[1755179056148,2.30643655,4552.0,4551.9,4.198]
[1755179056348,0.1096,4552.0,4551.9,7.001]
[1755179056796,0.1096,4552.0,4551.9,4.197]
[1755179056797,2.30643655,4552.0,4551.9,4.197]
[1755179057208,2.19693308,4551.8,4551.7,0.0018]
[1755179057408,2.19693308,4551.8,4551.7,4.1988]
[1755179058382,2.30644811,4552.0,4551.7,4.1988]
[1755179058674,0.1096,4552.0,4551.7,6.5566]
[1755179058873,2.19688481,4551.9,4551.8,2.803]
[1755179059102,0.1096,4552.0,4551.7,0.0018]
[1755179059308,2.19592154,4553.9,4551.9,0.55]
[1755179059607,1.1944,4555.2,4551.9,0.55]
[1755179059608,0.1096,4553.0,4552.4,0.1096]
[1755179059926,2.30595555,4553.0,4552.5,4.196]
[1755179060106,0.1096,4553.0,4552.7,0.55]
[1755179060348,0.1096,4553.0,4552.9,0.55]
[1755179060495,0.002,4554.8,4553.0,3.55]
[1755179060690,0.1096,4554.6,4553.2,3.55]
[1755179060990,0.002,4554.8,4554.2,0.55]
[1755179061191,0.002,4554.8,4554.4,0.55]
[1755179061518,2.19750961,4554.8,4554.5,2.803]
[1755179061735,0.002,4554.8,4553.7,2.4658]
[1755179061888,0.002,4554.8,4553.8,4.194]
[1755179062081,2.19584722,4554.1,4553.8,4.194]
[1755179062281,3.0,4554.6,4553.8,4.194]
[1755179062538,2.19553428,4554.7,4553.9,2.926]
[1755179062815,0.002,4554.8,4554.0,1.0102]
[1755179062991,0.002,4554.8,4554.3,0.55]
[1755179063192,2.19553428,4554.7,4554.4,4.193]
[1755179063423,0.002,4554.8,4554.4,7.119]
[1755179063598,2.19748862,4554.8,4554.5,2.926]
[1755179063797,2.19563069,4554.5,4554.4,4.193]
[1755179063998,0.002,4554.8,4553.8,0.4602]
[1755179064213,0.002,4554.8,4553.9,4.193]
[1755179064736,0.002,4554.8,4554.7,2.74553428]
[1755179064923,0.002,4554.8,4554.7,9.86353428]
[1755179065231,0.002,4554.8,4554.7,10.12353428]
[1755179065605,0.002,4554.8,4554.7,10.12433428]
[1755179065940,0.002,4554.8,4554.7,9.57433428]
[1755179066232,0.002,4554.8,4554.7,9.31433428]
[1755179066594,0.002,4554.8,4554.7,5.12233428]
[1755179066793,0.002,4554.8,4554.7,9.31233428]
[1755179067037,0.002,4554.8,4554.7,7.1168]
[1755179067606,0.002,4554.8,4554.7,2.9268]
[1755179067812,0.002,4554.8,4554.7,4.1898]
[1755179068231,2.19748608,4554.8,4554.7,0.0008]
[1755179068548,5.19748608,4554.8,4554.7,0.0008]
[1755179068905,2.19553428,4554.7,4554.5,4.189]
[1755179069239,2.19553428,4554.7,4554.6,0.26]
[1755179071027,0.1096,4554.7,4552.9,0.1096]
[1755179071229,0.1096,4554.7,4552.9,3.04]
[1755179071230,2.19635405,4553.0,4552.9,3.04]
[1755179071435,2.30595405,4553.0,4552.9,3.04]
[1755179072098,5.66665405,4553.0,4552.9,3.04]
[1755179072303,2.19664352,4552.4,4552.3,4.186]
[1755179072535,0.1096,4552.4,4552.3,4.186]
[1755179072934,3.3607,4554.7,4552.3,7.112]
[1755179073137,0.1096,4552.9,4552.3,3.0356]
[1755179073450,0.1096,4552.6,4551.7,0.001]
[1755179073646,2.19693308,4551.8,4551.7,0.001]
[1755179073848,2.30653308,4551.8,4551.7,0.001]
[1755179074136,0.1088,4551.8,4551.7,0.001]
[1755179074334,2.19670433,4552.3,4551.7,3.177]
[1755179074511,0.1096,4552.0,4551.7,3.177]
[1755179074722,0.1096,4552.0,4551.8,2.94796933]
[1755179075035,0.1096,4552.0,4551.7,0.251]
[1755179075036,0.1096,4552.4,4551.9,2.926]
[1755179075241,4.304,4553.9,4552.0,4.184]
[1755179075449,0.1096,4552.1,4551.9,0.25]
[1755179075798,0.1096,4552.1,4552.0,7.11]
[1755179076203,0.1096,4552.1,4552.0,4.434]
[1755179076445,2.30638829,4552.1,4552.0,4.434]
[1755179077748,0.1096,4552.1,4552.0,7.36]
[1755179078300,0.002,4553.9,4552.3,0.55]
[1755179078560,0.002,4553.9,4552.5,0.55]
[1755179078846,0.002,4553.9,4552.4,2.926]
[1755179078847,0.002,4553.9,4553.8,2.3055682]
[1755179079183,0.002,4553.9,4553.8,9.98452788]
[1755179079376,0.002,4554.8,4554.7,2.19553428]
[1755179079538,0.002,4554.8,4554.7,9.30253428]
[1755179079742,0.002,4554.8,4554.7,9.96213428]
[1755179080433,1e-08,4554.9,4554.8,2.74548608]
[1755179080633,1e-08,4554.9,4554.8,2.76744094]
[1755179080975,1e-08,4555.3,4555.2,5.74529329]
[1755179081135,1e-08,4555.8,4555.7,2.74505235]
[1755179081336,0.002,4558.3,4557.7,2.19407852]
[1755179081535,0.002,4558.3,4558.1,2.19388851]
[1755179081739,0.002,4558.3,4558.2,7.105]
[1755179082034,0.002,4558.3,4558.2,6.6448]